[Event "Early-Titled-Tuesday-Blitz-July-09-2024"]
[Site "Chess.com"]
[Date "2024.07.09"]
[Round "11"]
[White "Senn71"]
[Black "Dmitry_Ponomarev"]
[Result "1-0"]
[WhiteElo "2381"]
[BlackElo "2496"]
[TimeControl "180+1"]
[EndTime "10:06:10 PDT"]
[Termination "Senn71 won by checkmate"]

1. e4 {[%clk 0:03:00.9]} 1... d5 {[%clk 0:02:56.2]} 2. exd5 {[%clk 0:03:00.3]}
2... Qxd5 {[%clk 0:02:57.1]} 3. Nc3 {[%clk 0:03:00.2]} 3... Qd6 {[%clk
0:02:57.1]} 4. d4 {[%clk 0:02:57.7]} 4... Nf6 {[%clk 0:02:57.3]} 5. Bc4 {[%clk
0:02:56.1]} 5... a6 {[%clk 0:02:56.5]} 6. Nge2 {[%clk 0:02:53.9]} 6... b5 {[%clk
0:02:56.7]} 7. Bf4 {[%clk 0:02:51.9]} 7... Bb7 {[%clk 0:02:57.3]} 8. Bxd6 {[%clk
0:02:51.1]} 8... cxd6 {[%clk 0:02:33.6]} 9. Bb3 {[%clk 0:02:47]} 9... Bxg2
{[%clk 0:02:32.1]} 10. Rg1 {[%clk 0:02:38.2]} 10... Bb7 {[%clk 0:02:31.9]} 11.
Ng3 {[%clk 0:02:23.2]} 11... g6 {[%clk 0:02:27.6]} 12. Qd2 {[%clk 0:02:22.2]}
12... Nc6 {[%clk 0:02:25.8]} 13. Nd5 {[%clk 0:02:17.2]} 13... Nxd5 {[%clk
0:02:23.7]} 14. Bxd5 {[%clk 0:02:17.2]} 14... e6 {[%clk 0:02:23.3]} 15. Bxc6+
{[%clk 0:02:03.8]} 15... Bxc6 {[%clk 0:02:24.2]} 16. O-O-O {[%clk 0:01:57.2]}
16... Bb7 {[%clk 0:02:21.9]} 17. h4 {[%clk 0:01:55.2]} 17... h5 {[%clk 0:02:20]}
18. Kb1 {[%clk 0:01:54.4]} 18... Be7 {[%clk 0:02:18.1]} 19. Qf4 {[%clk
0:01:43.9]} 19... Bd5 {[%clk 0:02:15.2]} 20. Ne4 {[%clk 0:01:39.6]} 20... Bxe4
{[%clk 0:02:13.7]} 21. Qxe4 {[%clk 0:01:39.2]} 21... d5 {[%clk 0:02:13.4]} 22.
Qf4 {[%clk 0:01:33.3]} 22... Rc8 {[%clk 0:02:12]} 23. Rg3 {[%clk 0:01:26.3]}
23... Rf8 {[%clk 0:02:09.8]} 24. Rf3 {[%clk 0:01:24.9]} 24... Kd7 {[%clk
0:02:08.2]} 25. Rdd3 {[%clk 0:01:19.3]} 25... Bb4 {[%clk 0:02:05.7]} 26. a3
{[%clk 0:01:17.9]} 26... Bd6 {[%clk 0:02:03.4]} 27. Qd2 {[%clk 0:01:13]} 27...
Be7 {[%clk 0:02:00.7]} 28. Rh3 {[%clk 0:01:11.4]} 28... Rc4 {[%clk 0:01:48.9]}
29. Qa5 {[%clk 0:01:08.6]} 29... Rc6 {[%clk 0:01:48]} 30. Rc3 {[%clk 0:01:07.8]}
30... Rfc8 {[%clk 0:01:45.9]} 31. Rxc6 {[%clk 0:01:07.3]} 31... Rxc6 {[%clk
0:01:46.8]} 32. Rc3 {[%clk 0:01:05.3]} 32... Rxc3 {[%clk 0:01:45.8]} 33. bxc3
{[%clk 0:01:05]} 33... Bxh4 {[%clk 0:01:34.7]} 34. Qxa6 {[%clk 0:01:05.1]} 34...
Bxf2 {[%clk 0:01:34.2]} 35. Qxb5+ {[%clk 0:01:05.7]} 35... Ke7 {[%clk
0:01:34.5]} 36. Qe2 {[%clk 0:01:00.5]} 36... Bg3 {[%clk 0:01:32.6]} 37. a4
{[%clk 0:01:00]} 37... Bc7 {[%clk 0:01:32.2]} 38. Kb2 {[%clk 0:00:57.4]} 38...
h4 {[%clk 0:01:30.4]} 39. Qg4 {[%clk 0:00:57]} 39... Bg3 {[%clk 0:01:30.1]} 40.
Kb3 {[%clk 0:00:56.3]} 40... Kd6 {[%clk 0:01:30]} 41. Kb4 {[%clk 0:00:56.3]}
41... Kc6 {[%clk 0:01:30.1]} 42. c4 {[%clk 0:00:51.4]} 42... dxc4 {[%clk
0:01:23.6]} 43. Kxc4 {[%clk 0:00:51.1]} 43... f5 {[%clk 0:01:19.5]} 44. Qxg6
{[%clk 0:00:50.3]} 44... Kd6 {[%clk 0:01:19.6]} 45. a5 {[%clk 0:00:48]} 45...
Be1 {[%clk 0:01:16.1]} 46. a6 {[%clk 0:00:47.4]} 46... h3 {[%clk 0:01:14.3]} 47.
a7 {[%clk 0:00:46.9]} 47... h2 {[%clk 0:01:14.3]} 48. a8=Q {[%clk 0:00:46.8]}
48... Bb4 {[%clk 0:01:13.4]} 49. Qd5+ {[%clk 0:00:44.2]} 49... Kc7 {[%clk
0:01:12]} 50. Qgxe6 {[%clk 0:00:42.5]} 50... f4 {[%clk 0:01:08.6]} 51. Kxb4
{[%clk 0:00:40.4]} 51... f3 {[%clk 0:01:08.1]} 52. Qdd7+ {[%clk 0:00:40.4]}
52... Kb8 {[%clk 0:01:07.6]} 53. Qee8# {[%clk 0:00:41]} 1-0

[Event "Early-Titled-Tuesday-Blitz-July-09-2024"]
[Site "Chess.com"]
[Date "2024.07.09"]
[Round "11"]
[White "yesilikeorangejuice"]
[Black "coalescenet"]
[Result "1-0"]
[WhiteElo "2528"]
[BlackElo "2386"]
[TimeControl "180+1"]
[EndTime "10:06:11 PDT"]
[Termination "yesilikeorangejuice won by checkmate"]

1. e4 {[%clk 0:03:00.9]} 1... c6 {[%clk 0:02:59.9]} 2. Nf3 {[%clk 0:02:59.7]}
2... d5 {[%clk 0:03:00.8]} 3. Nc3 {[%clk 0:03:00]} 3... dxe4 {[%clk 0:03:00.7]}
4. Nxe4 {[%clk 0:03:00.9]} 4... Nf6 {[%clk 0:03:00.2]} 5. Qe2 {[%clk 0:02:59.5]}
5... Nxe4 {[%clk 0:02:59.7]} 6. Qxe4 {[%clk 0:03:00.4]} 6... Qa5 {[%clk
0:02:59.8]} 7. Bc4 {[%clk 0:02:50.5]} 7... Bf5 {[%clk 0:02:59.4]} 8. Qf4 {[%clk
0:02:50.6]} 8... e6 {[%clk 0:02:59.2]} 9. O-O {[%clk 0:02:47.3]} 9... Nd7 {[%clk
0:02:59]} 10. d4 {[%clk 0:02:45.3]} 10... Be7 {[%clk 0:02:52.8]} 11. c3 {[%clk
0:02:40.4]} 11... Rc8 {[%clk 0:02:51.3]} 12. Re1 {[%clk 0:02:34.9]} 12... O-O
{[%clk 0:02:50.8]} 13. Qg3 {[%clk 0:02:26.2]} 13... Bg6 {[%clk 0:02:50.5]} 14.
Bg5 {[%clk 0:02:07.6]} 14... Bxg5 {[%clk 0:02:45.8]} 15. Nxg5 {[%clk 0:02:08.5]}
15... Kh8 {[%clk 0:02:34.4]} 16. h4 {[%clk 0:01:42.2]} 16... c5 {[%clk
0:01:50.1]} 17. d5 {[%clk 0:01:18.7]} 17... Nb6 {[%clk 0:01:48.4]} 18. dxe6
{[%clk 0:01:12.3]} 18... Nxc4 {[%clk 0:01:46.6]} 19. e7 {[%clk 0:01:07.9]} 19...
Rfe8 {[%clk 0:01:41.8]} 20. h5 {[%clk 0:01:07.7]} 20... Bxh5 {[%clk 0:01:34.4]}
21. Qh3 {[%clk 0:01:08]} 21... f6 {[%clk 0:01:32.4]} 22. Nxh7 {[%clk 0:00:52.4]}
22... Kxh7 {[%clk 0:01:21.9]} 23. Qxh5+ {[%clk 0:00:50.6]} 23... Kg8 {[%clk
0:01:22.6]} 24. Qd5+ {[%clk 0:00:48.5]} 24... Kh7 {[%clk 0:01:17.8]} 25. Qxc4
{[%clk 0:00:43.7]} 25... Qc7 {[%clk 0:00:58.3]} 26. Qf7 {[%clk 0:00:36.5]} 26...
Kh6 {[%clk 0:00:36.6]} 27. Re3 {[%clk 0:00:32.1]} 27... Qd7 {[%clk 0:00:34.4]}
28. Rh3+ {[%clk 0:00:29.6]} 28... Kg5 {[%clk 0:00:34.8]} 29. Qh5+ {[%clk
0:00:21]} 29... Kf4 {[%clk 0:00:35]} 30. Rf3+ {[%clk 0:00:21.5]} 30... Ke4
{[%clk 0:00:35.3]} 31. Re1# {[%clk 0:00:21.8]} 1-0

[Event "Early-Titled-Tuesday-Blitz-July-09-2024"]
[Site "Chess.com"]
[Date "2024.07.09"]
[Round "11"]
[White "Arystanner"]
[Black "AcostaPablo"]
[Result "1-0"]
[WhiteElo "2912"]
[BlackElo "2708"]
[TimeControl "180+1"]
[EndTime "10:06:14 PDT"]
[Termination "Arystanner won by checkmate"]

1. e4 {[%clk 0:03:00.9]} 1... e6 {[%clk 0:02:57.9]} 2. d4 {[%clk 0:03:00.7]}
2... d5 {[%clk 0:02:58.4]} 3. e5 {[%clk 0:03:01.4]} 3... c5 {[%clk 0:02:57.8]}
4. c3 {[%clk 0:03:01.9]} 4... Nc6 {[%clk 0:02:58.1]} 5. Nf3 {[%clk 0:03:02.7]}
5... Qb6 {[%clk 0:02:58.3]} 6. Bd3 {[%clk 0:03:02.1]} 6... cxd4 {[%clk
0:02:57.4]} 7. O-O {[%clk 0:03:02.5]} 7... Nh6 {[%clk 0:02:56.7]} 8. Re1 {[%clk
0:02:49.4]} 8... dxc3 {[%clk 0:02:42.7]} 9. Nxc3 {[%clk 0:02:50.3]} 9... Ng4
{[%clk 0:02:43]} 10. Qe2 {[%clk 0:02:42.8]} 10... Bc5 {[%clk 0:02:40.8]} 11. Nd1
{[%clk 0:02:33.5]} 11... f6 {[%clk 0:02:23]} 12. exf6 {[%clk 0:02:28.4]} 12...
Nxf6 {[%clk 0:02:23.2]} 13. a3 {[%clk 0:02:12.6]} 13... Nd4 {[%clk 0:02:16.7]}
14. Nxd4 {[%clk 0:02:07.7]} 14... Bxd4 {[%clk 0:02:16.9]} 15. Be3 {[%clk
0:02:07.9]} 15... O-O {[%clk 0:02:16.3]} 16. Bxd4 {[%clk 0:01:53.1]} 16... Qxd4
{[%clk 0:02:15.7]} 17. Ne3 {[%clk 0:01:49.2]} 17... Bd7 {[%clk 0:02:12.8]} 18.
Rad1 {[%clk 0:01:49.8]} 18... Qf4 {[%clk 0:02:09.1]} 19. g3 {[%clk 0:01:41.9]}
19... Qc7 {[%clk 0:01:55.6]} 20. Nc2 {[%clk 0:01:41.9]} 20... Rae8 {[%clk
0:01:53.9]} 21. Qe5 {[%clk 0:01:41.2]} 21... Qxe5 {[%clk 0:01:50.3]} 22. Rxe5
{[%clk 0:01:41.7]} 22... Ng4 {[%clk 0:01:50.3]} 23. Re2 {[%clk 0:01:41.3]} 23...
e5 {[%clk 0:01:47]} 24. Nb4 {[%clk 0:01:41.6]} 24... Bc6 {[%clk 0:01:45.5]} 25.
Rc1 {[%clk 0:01:39.5]} 25... e4 {[%clk 0:01:36.1]} 26. Bb1 {[%clk 0:01:39.4]}
26... Bb5 {[%clk 0:01:12.7]} 27. Rd2 {[%clk 0:01:32.3]} 27... e3 {[%clk
0:01:09.1]} 28. fxe3 {[%clk 0:01:32.7]} 28... Rxe3 {[%clk 0:01:02.6]} 29. Nxd5
{[%clk 0:01:25.4]} 29... Ref3 {[%clk 0:00:59.2]} 30. Nf4 {[%clk 0:01:25.7]}
30... g5 {[%clk 0:00:55.5]} 31. Be4 {[%clk 0:01:26.3]} 31... Ne5 {[%clk
0:00:40.6]} 32. Rd5 {[%clk 0:01:16.1]} 32... gxf4 {[%clk 0:00:15.8]} 33. Rxb5
{[%clk 0:01:08.3]} 33... Nd3 {[%clk 0:00:01]} 34. Rg5+ {[%clk 0:01:08.1]} 34...
Kh8 {[%clk 0:00:01]} 35. Rc7 {[%clk 0:01:08.7]} 35... Re3 {[%clk 0:00:01.1]} 36.
Rxh7# {[%clk 0:01:08.7]} 1-0

[Event "Early-Titled-Tuesday-Blitz-July-09-2024"]
[Site "Chess.com"]
[Date "2024.07.09"]
[Round "11"]
[White "Rosh1610"]
[Black "BlackBoarder"]
[Result "1/2-1/2"]
[WhiteElo "2507"]
[BlackElo "2737"]
[TimeControl "180+1"]
[EndTime "10:06:14 PDT"]
[Termination "Game drawn by repetition"]

1. e4 {[%clk 0:03:00.9]} 1... e6 {[%clk 0:00:11.8]} 2. d4 {[%clk 0:02:58.4]}
2... d5 {[%clk 0:00:11.5]} 3. Nc3 {[%clk 0:02:57.7]} 3... Bb4 {[%clk 0:00:12.2]}
4. exd5 {[%clk 0:02:57.6]} 4... exd5 {[%clk 0:00:12.4]} 5. Bd3 {[%clk
0:02:57.9]} 5... Ne7 {[%clk 0:00:13.1]} 6. Ne2 {[%clk 0:02:57.7]} 6... O-O
{[%clk 0:00:13.6]} 7. O-O {[%clk 0:02:58.3]} 7... Bf5 {[%clk 0:00:14]} 8. a3
{[%clk 0:02:57.1]} 8... Bd6 {[%clk 0:00:13.8]} 9. Bf4 {[%clk 0:02:56.5]} 9... c6
{[%clk 0:00:13.5]} 10. Bxd6 {[%clk 0:02:53.8]} 10... Qxd6 {[%clk 0:00:14.4]} 11.
Ng3 {[%clk 0:02:54.5]} 11... Bxd3 {[%clk 0:00:14.3]} 12. Qxd3 {[%clk 0:02:55.4]}
12... Nd7 {[%clk 0:00:14.9]} 13. Rae1 {[%clk 0:02:50.5]} 13... Rfe8 {[%clk
0:00:15.3]} 14. f4 {[%clk 0:02:50.2]} 14... Nf6 {[%clk 0:00:15.4]} 15. Re5
{[%clk 0:02:49.3]} 15... Ng6 {[%clk 0:00:15.4]} 16. Nf5 {[%clk 0:02:49.1]} 16...
Qd7 {[%clk 0:00:15.1]} 17. h3 {[%clk 0:02:43.9]} 17... Re6 {[%clk 0:00:14.4]}
18. g4 {[%clk 0:02:43.7]} 18... Rae8 {[%clk 0:00:14]} 19. g5 {[%clk 0:02:41.8]}
19... Nh5 {[%clk 0:00:13.5]} 20. Ne2 {[%clk 0:02:38.5]} 20... Nxe5 {[%clk
0:00:13.2]} 21. fxe5 {[%clk 0:02:38.5]} 21... Rg6 {[%clk 0:00:13.4]} 22. h4
{[%clk 0:02:38]} 22... f6 {[%clk 0:00:12.6]} 23. exf6 {[%clk 0:02:31]} 23...
Nxf6 {[%clk 0:00:12]} 24. Ne3 {[%clk 0:02:29.9]} 24... Ne4 {[%clk 0:00:11.6]}
25. Nf4 {[%clk 0:02:30]} 25... Rd6 {[%clk 0:00:11.7]} 26. c4 {[%clk 0:02:26.8]}
26... Rf8 {[%clk 0:00:10.7]} 27. c5 {[%clk 0:02:26.8]} 27... Re6 {[%clk
0:00:08.9]} 28. Nxe6 {[%clk 0:02:26.4]} 28... Rxf1+ {[%clk 0:00:09.3]} 29. Qxf1
{[%clk 0:02:25.8]} 29... Qxe6 {[%clk 0:00:10]} 30. Qf5 {[%clk 0:02:26.1]} 30...
Qxf5 {[%clk 0:00:08.9]} 31. Nxf5 {[%clk 0:02:27]} 31... Kf7 {[%clk 0:00:09.1]}
32. Kg2 {[%clk 0:02:23.6]} 32... g6 {[%clk 0:00:09.2]} 33. Ne3 {[%clk
0:02:21.5]} 33... Ke6 {[%clk 0:00:09.7]} 34. Kf3 {[%clk 0:02:21.3]} 34... Nd2+
{[%clk 0:00:09.9]} 35. Ke2 {[%clk 0:02:21.4]} 35... Nc4 {[%clk 0:00:08.2]} 36.
Nd1 {[%clk 0:02:18.8]} 36... b6 {[%clk 0:00:06.9]} 37. cxb6 {[%clk 0:02:17]}
37... axb6 {[%clk 0:00:07.4]} 38. Kd3 {[%clk 0:02:17.4]} 38... Kf5 {[%clk
0:00:07.7]} 39. a4 {[%clk 0:02:08.8]} 39... Kg4 {[%clk 0:00:06.8]} 40. Ne3+
{[%clk 0:02:04.9]} 40... Kxh4 {[%clk 0:00:03.1]} 41. Nxc4 {[%clk 0:02:02.3]}
41... dxc4+ {[%clk 0:00:03.6]} 42. Kxc4 {[%clk 0:02:03.2]} 42... Kxg5 {[%clk
0:00:04.3]} 43. b4 {[%clk 0:02:03.8]} 43... h5 {[%clk 0:00:04.6]} 44. a5 {[%clk
0:02:04.2]} 44... bxa5 {[%clk 0:00:04.8]} 45. bxa5 {[%clk 0:02:04.9]} 45... h4
{[%clk 0:00:05.5]} 46. a6 {[%clk 0:02:05.5]} 46... h3 {[%clk 0:00:06.2]} 47. a7
{[%clk 0:02:06.1]} 47... h2 {[%clk 0:00:06.9]} 48. a8=Q {[%clk 0:02:06.6]} 48...
h1=Q {[%clk 0:00:07.3]} 49. Qd8+ {[%clk 0:02:06.9]} 49... Kg4 {[%clk 0:00:04]}
50. Qd7+ {[%clk 0:02:07.1]} 50... Kg5 {[%clk 0:00:04.1]} 51. Qe7+ {[%clk
0:02:07.2]} 51... Kf5 {[%clk 0:00:03.9]} 52. Qe5+ {[%clk 0:02:07.1]} 52... Kg4
{[%clk 0:00:04.2]} 53. Qe6+ {[%clk 0:02:07.4]} 53... Kh5 {[%clk 0:00:04.5]} 54.
Qe5+ {[%clk 0:02:06.1]} 54... Kg4 {[%clk 0:00:04.9]} 55. Qe6+ {[%clk 0:02:04.5]}
55... Kg5 {[%clk 0:00:04.9]} 56. Qe7+ {[%clk 0:02:04.4]} 56... Kf5 {[%clk
0:00:04.2]} 57. Qf7+ {[%clk 0:02:04]} 57... Kg5 {[%clk 0:00:04.5]} 58. Qe7+
{[%clk 0:02:03]} 1/2-1/2

[Event "Early-Titled-Tuesday-Blitz-July-09-2024"]
[Site "Chess.com"]
[Date "2024.07.09"]
[Round "11"]
[White "boguszp"]
[Black "AlainBruxelles"]
[Result "0-1"]
[WhiteElo "1952"]
[BlackElo "2247"]
[TimeControl "180+1"]
[EndTime "10:06:17 PDT"]
[Termination "AlainBruxelles won on time"]

1. d4 {[%clk 0:03:00.9]} 1... Nf6 {[%clk 0:02:58.2]} 2. Nf3 {[%clk 0:02:59.1]}
2... g6 {[%clk 0:02:58.4]} 3. Bf4 {[%clk 0:02:58.7]} 3... Bg7 {[%clk 0:02:58.8]}
4. e3 {[%clk 0:02:58.9]} 4... O-O {[%clk 0:02:59.3]} 5. h3 {[%clk 0:02:59.1]}
5... d6 {[%clk 0:02:59.6]} 6. Be2 {[%clk 0:02:59.3]} 6... c5 {[%clk 0:02:59.8]}
7. O-O {[%clk 0:02:59.6]} 7... Nc6 {[%clk 0:02:59.7]} 8. c3 {[%clk 0:02:59.6]}
8... Qb6 {[%clk 0:02:58.2]} 9. Qb3 {[%clk 0:02:58]} 9... Qxb3 {[%clk 0:02:57]}
10. axb3 {[%clk 0:02:57.1]} 10... Be6 {[%clk 0:02:53.1]} 11. Nbd2 {[%clk
0:02:55.1]} 11... cxd4 {[%clk 0:02:46.5]} 12. exd4 {[%clk 0:02:54.1]} 12... Nd5
{[%clk 0:02:43.8]} 13. Bg3 {[%clk 0:02:49.3]} 13... Bd7 {[%clk 0:02:43.8]} 14.
b4 {[%clk 0:02:47.8]} 14... a6 {[%clk 0:02:40.6]} 15. Rfe1 {[%clk 0:02:41.2]}
15... e5 {[%clk 0:02:39.2]} 16. Bc4 {[%clk 0:02:24.1]} 16... Nb6 {[%clk
0:02:36.3]} 17. Bb3 {[%clk 0:02:23.6]} 17... Rae8 {[%clk 0:02:28.7]} 18. d5
{[%clk 0:02:18]} 18... Ne7 {[%clk 0:02:27]} 19. c4 {[%clk 0:02:16.9]} 19... Nf5
{[%clk 0:02:25.6]} 20. c5 {[%clk 0:02:05]} 20... Nxg3 {[%clk 0:02:23.1]} 21.
fxg3 {[%clk 0:02:03.7]} 21... Nc8 {[%clk 0:02:22.8]} 22. c6 {[%clk 0:01:43.3]}
22... bxc6 {[%clk 0:02:17.3]} 23. Rxa6 {[%clk 0:01:42.6]} 23... cxd5 {[%clk
0:02:14.3]} 24. Bxd5 {[%clk 0:01:40.7]} 24... Ne7 {[%clk 0:02:14.8]} 25. Rxd6
{[%clk 0:01:37.3]} 25... Nxd5 {[%clk 0:02:06.6]} 26. Rxd5 {[%clk 0:01:33.8]}
26... Be6 {[%clk 0:02:06.5]} 27. Rd6 {[%clk 0:01:30.2]} 27... Rb8 {[%clk
0:02:05.2]} 28. Nxe5 {[%clk 0:01:23.7]} 28... Rxb4 {[%clk 0:02:03.2]} 29. Nd3
{[%clk 0:01:15.3]} 29... Rb5 {[%clk 0:01:57.6]} 30. Rb1 {[%clk 0:01:09.7]} 30...
Rfb8 {[%clk 0:01:55]} 31. b3 {[%clk 0:01:03.5]} 31... Bf8 {[%clk 0:01:54.6]} 32.
Rc6 {[%clk 0:00:53.6]} 32... Bf5 {[%clk 0:01:54.2]} 33. Nf4 {[%clk 0:00:19.5]}
33... Bxb1 {[%clk 0:01:48.8]} 34. Nxb1 {[%clk 0:00:18.8]} 34... Rxb3 {[%clk
0:01:45.9]} 35. Nc3 {[%clk 0:00:15.5]} 35... Rb2 {[%clk 0:01:41.5]} 36. Ne4
{[%clk 0:00:08.1]} 36... Rd8 {[%clk 0:01:32]} 37. Rc7 {[%clk 0:00:04]} 37... Kg7
{[%clk 0:01:28.4]} 38. Ne6+ {[%clk 0:00:02.5]} 38... Kg8 {[%clk 0:01:25.7]} 39.
Nxd8 {[%clk 0:00:02.9]} 39... Bg7 {[%clk 0:01:18.5]} 40. Nxf7 {[%clk 0:00:02.2]}
40... Bd4+ {[%clk 0:01:16.2]} 41. Kh2 {[%clk 0:00:01]} 41... Re2 {[%clk
0:01:15.8]} 0-1

[Event "Early-Titled-Tuesday-Blitz-July-09-2024"]
[Site "Chess.com"]
[Date "2024.07.09"]
[Round "11"]
[White "Makswolf200817"]
[Black "Crazy_girl99"]
[Result "0-1"]
[WhiteElo "2762"]
[BlackElo "2672"]
[TimeControl "180+1"]
[EndTime "10:06:21 PDT"]
[Termination "Crazy_girl99 won on time"]

1. d4 {[%clk 0:03:00.9]} 1... Nf6 {[%clk 0:02:59.7]} 2. c4 {[%clk 0:02:57.1]}
2... e6 {[%clk 0:03:00]} 3. g3 {[%clk 0:02:56.6]} 3... d5 {[%clk 0:02:59.3]} 4.
Bg2 {[%clk 0:02:57]} 4... Be7 {[%clk 0:02:59.8]} 5. Nf3 {[%clk 0:02:57.3]} 5...
O-O {[%clk 0:03:00.1]} 6. Nc3 {[%clk 0:02:57.3]} 6... dxc4 {[%clk 0:02:59.8]} 7.
Ne5 {[%clk 0:02:57.2]} 7... Nc6 {[%clk 0:02:55.5]} 8. Bxc6 {[%clk 0:02:56.7]}
8... bxc6 {[%clk 0:02:55.6]} 9. Nxc6 {[%clk 0:02:57.6]} 9... Qe8 {[%clk
0:02:56.1]} 10. Nxe7+ {[%clk 0:02:58.3]} 10... Qxe7 {[%clk 0:02:57]} 11. Qa4
{[%clk 0:02:56.3]} 11... Nd5 {[%clk 0:02:56.9]} 12. Qxc4 {[%clk 0:02:43.1]}
12... a5 {[%clk 0:02:56.6]} 13. Ne4 {[%clk 0:02:17.3]} 13... Ba6 {[%clk
0:02:52.2]} 14. Qc2 {[%clk 0:02:17.3]} 14... Nb4 {[%clk 0:02:50.7]} 15. Qd1
{[%clk 0:02:07.5]} 15... Rad8 {[%clk 0:02:36.7]} 16. O-O {[%clk 0:01:52.7]}
16... e5 {[%clk 0:02:36.3]} 17. a3 {[%clk 0:01:10]} 17... Nc6 {[%clk 0:02:35.1]}
18. d5 {[%clk 0:01:04.8]} 18... Nd4 {[%clk 0:02:31.4]} 19. Nc3 {[%clk
0:01:05.2]} 19... c6 {[%clk 0:02:25]} 20. Be3 {[%clk 0:01:04.3]} 20... Nf5
{[%clk 0:02:20.6]} 21. Bb6 {[%clk 0:01:01.3]} 21... Rd7 {[%clk 0:02:18.3]} 22.
Bxa5 {[%clk 0:00:56.1]} 22... h5 {[%clk 0:02:15.1]} 23. Qa4 {[%clk 0:00:52.8]}
23... Ra7 {[%clk 0:01:51.4]} 24. dxc6 {[%clk 0:00:42.6]} 24... Qe6 {[%clk
0:01:51.3]} 25. c7 {[%clk 0:00:33.8]} 25... Nd4 {[%clk 0:01:48.7]} 26. Rfd1
{[%clk 0:00:28.6]} 26... Bb7 {[%clk 0:01:47.8]} 27. Qb4 {[%clk 0:00:12.7]} 27...
Nxe2+ {[%clk 0:01:07.5]} 28. Nxe2 {[%clk 0:00:11.5]} 28... Qc6 {[%clk
0:01:08.1]} 29. Qxf8+ {[%clk 0:00:05]} 29... Kxf8 {[%clk 0:01:07.8]} 30. Rd8+
{[%clk 0:00:05.8]} 30... Ke7 {[%clk 0:01:08]} 31. Bb4+ {[%clk 0:00:06.5]} 31...
Ke6 {[%clk 0:01:06.8]} 32. Rd6+ {[%clk 0:00:05.6]} 32... Qxd6 {[%clk 0:01:07.4]}
33. Bxd6 {[%clk 0:00:06.5]} 33... Kxd6 {[%clk 0:01:08.3]} 34. Rc1 {[%clk
0:00:06.2]} 34... Kd7 {[%clk 0:01:08.3]} 35. Nc3 {[%clk 0:00:05.5]} 35... Ra5
{[%clk 0:01:06.9]} 36. Na2 {[%clk 0:00:03.6]} 36... Rd5 {[%clk 0:01:04.6]} 37.
Nb4 {[%clk 0:00:03.1]} 37... Rd2 {[%clk 0:01:05.2]} 0-1

[Event "Early-Titled-Tuesday-Blitz-July-09-2024"]
[Site "Chess.com"]
[Date "2024.07.09"]
[Round "11"]
[White "Os55555"]
[Black "jbking07"]
[Result "0-1"]
[WhiteElo "2303"]
[BlackElo "2452"]
[TimeControl "180+1"]
[EndTime "10:06:22 PDT"]
[Termination "jbking07 won by resignation"]

1. d4 {[%clk 0:03:00]} 1... d5 {[%clk 0:03:00.3]} 2. c4 {[%clk 0:03:00.1]} 2...
e6 {[%clk 0:03:00.5]} 3. Nf3 {[%clk 0:02:59.1]} 3... Nf6 {[%clk 0:03:00.5]} 4.
Nc3 {[%clk 0:02:59.2]} 4... dxc4 {[%clk 0:03:00.6]} 5. a4 {[%clk 0:02:54.4]}
5... Nc6 {[%clk 0:02:54.3]} 6. Bf4 {[%clk 0:02:53.6]} 6... Bd6 {[%clk
0:02:43.1]} 7. Bxd6 {[%clk 0:02:49.5]} 7... cxd6 {[%clk 0:02:42.7]} 8. e3 {[%clk
0:02:50.4]} 8... d5 {[%clk 0:02:41.8]} 9. Be2 {[%clk 0:02:49.3]} 9... O-O {[%clk
0:02:41.6]} 10. O-O {[%clk 0:02:49]} 10... a6 {[%clk 0:02:39.8]} 11. Ne5 {[%clk
0:02:39.1]} 11... Nxe5 {[%clk 0:02:35.1]} 12. dxe5 {[%clk 0:02:40]} 12... Nd7
{[%clk 0:02:35.4]} 13. f4 {[%clk 0:02:39.9]} 13... Nc5 {[%clk 0:02:30]} 14. Rf3
{[%clk 0:02:20.5]} 14... Bd7 {[%clk 0:02:22.9]} 15. Rh3 {[%clk 0:02:16.3]} 15...
b5 {[%clk 0:02:15.8]} 16. Qc2 {[%clk 0:02:08]} 16... g6 {[%clk 0:02:13.4]} 17.
Rf1 {[%clk 0:01:56]} 17... b4 {[%clk 0:02:10.8]} 18. Nd1 {[%clk 0:01:51.2]}
18... Bxa4 {[%clk 0:02:09.8]} 19. Qd2 {[%clk 0:01:48.9]} 19... Qb6 {[%clk
0:02:04.4]} 20. Qd4 {[%clk 0:01:32.5]} 20... Rab8 {[%clk 0:01:47.5]} 21. f5
{[%clk 0:01:31.1]} 21... Ne4 {[%clk 0:01:39.2]} 22. f6 {[%clk 0:01:11.8]} 22...
Rfc8 {[%clk 0:01:14.7]} 23. Rf4 {[%clk 0:01:00.4]} 23... Qxd4 {[%clk 0:00:58.9]}
24. exd4 {[%clk 0:01:01.3]} 24... Bxd1 {[%clk 0:00:53.8]} 25. Bxd1 {[%clk
0:00:58.3]} 25... c3 {[%clk 0:00:51.3]} 26. bxc3 {[%clk 0:00:52.4]} 26... Rxc3
{[%clk 0:00:50.3]} 27. Rff3 {[%clk 0:00:27.3]} 27... Rxf3 {[%clk 0:00:46.5]} 28.
Rxf3 {[%clk 0:00:26.7]} 28... Nc3 {[%clk 0:00:38.6]} 29. Bb3 {[%clk 0:00:20.9]}
29... Ne2+ {[%clk 0:00:36.7]} 30. Kf2 {[%clk 0:00:18.6]} 30... Nxd4 {[%clk
0:00:37.6]} 31. Rd3 {[%clk 0:00:18.8]} 31... Nxb3 {[%clk 0:00:36.6]} 32. Rxb3
{[%clk 0:00:19.7]} 32... a5 {[%clk 0:00:37.5]} 0-1

[Event "Early-Titled-Tuesday-Blitz-July-09-2024"]
[Site "Chess.com"]
[Date "2024.07.09"]
[Round "11"]
[White "FrenchPlayer2203"]
[Black "NovakRatko"]
[Result "0-1"]
[WhiteElo "2267"]
[BlackElo "2365"]
[TimeControl "180+1"]
[EndTime "10:06:22 PDT"]
[Termination "NovakRatko won on time"]

1. d4 {[%clk 0:03:00.9]} 1... d5 {[%clk 0:02:59.9]} 2. c4 {[%clk 0:03:00.1]}
2... c5 {[%clk 0:03:00.1]} 3. cxd5 {[%clk 0:02:50.4]} 3... Qxd5 {[%clk 0:03:01]}
4. Nf3 {[%clk 0:02:48.1]} 4... cxd4 {[%clk 0:03:01]} 5. Nc3 {[%clk 0:02:42.4]}
5... Qa5 {[%clk 0:02:58.7]} 6. Nxd4 {[%clk 0:02:37.1]} 6... e5 {[%clk
0:02:58.7]} 7. Nb3 {[%clk 0:02:34.2]} 7... Qc7 {[%clk 0:02:58.8]} 8. e4 {[%clk
0:02:27.5]} 8... Nf6 {[%clk 0:02:57.5]} 9. Bb5+ {[%clk 0:02:25]} 9... Nc6 {[%clk
0:02:50.7]} 10. O-O {[%clk 0:02:22.5]} 10... Be6 {[%clk 0:02:50.8]} 11. Bg5
{[%clk 0:02:08.9]} 11... Rd8 {[%clk 0:02:49.5]} 12. Qe2 {[%clk 0:01:48.4]} 12...
Be7 {[%clk 0:02:48]} 13. Bxf6 {[%clk 0:01:34.2]} 13... Bxf6 {[%clk 0:02:47.2]}
14. Rac1 {[%clk 0:01:33]} 14... O-O {[%clk 0:02:43.8]} 15. Bxc6 {[%clk
0:01:16.2]} 15... bxc6 {[%clk 0:02:33.7]} 16. Nc5 {[%clk 0:01:13.9]} 16... Bc8
{[%clk 0:02:24]} 17. Rfd1 {[%clk 0:00:56.5]} 17... Qa5 {[%clk 0:02:22.9]} 18.
N3a4 {[%clk 0:00:48.6]} 18... Be7 {[%clk 0:02:02.9]} 19. a3 {[%clk 0:00:45.4]}
19... Rxd1+ {[%clk 0:02:00]} 20. Qxd1 {[%clk 0:00:36]} 20... Rd8 {[%clk
0:01:59.9]} 21. Qf3 {[%clk 0:00:28.3]} 21... Rd4 {[%clk 0:01:54.9]} 22. b4
{[%clk 0:00:25.9]} 22... Qd8 {[%clk 0:01:49.7]} 23. Qe2 {[%clk 0:00:15.9]} 23...
a5 {[%clk 0:01:48.8]} 24. Qe1 {[%clk 0:00:10.4]} 24... axb4 {[%clk 0:01:41.8]}
25. axb4 {[%clk 0:00:09.7]} 25... f5 {[%clk 0:01:23.6]} 26. h3 {[%clk
0:00:05.8]} 26... fxe4 {[%clk 0:01:20.3]} 27. Nc3 {[%clk 0:00:02.4]} 27... Rxb4
{[%clk 0:01:04.8]} 28. N3xe4 {[%clk 0:00:01.8]} 28... Rd4 {[%clk 0:01:02.6]} 29.
Rb1 {[%clk 0:00:01.5]} 29... Bf5 {[%clk 0:00:58.4]} 30. Qe3 {[%clk 0:00:01.1]}
30... h6 {[%clk 0:00:56.3]} 31. Qf3 {[%clk 0:00:01.1]} 31... Bg6 {[%clk
0:00:52.2]} 0-1